bitfinex/quotes_BTCUSD_20241208
["timestamp","ask_amount","ask_price","bid_price","bid_amount"]
[1733641494102,0.22249103,99759.0,99757.0,0.13515171]
[1733641494305,0.221238,99759.0,99754.0,0.13515171]
[1733641494487,0.14034,99758.0,99757.0,0.09012081]
[1733641495617,0.14034,99758.0,99756.0,0.09012081]
[1733641496259,0.0012531,99757.0,99756.0,0.09012081]
[1733641496453,0.0012531,99757.0,99754.0,0.13515171]
[1733641496654,0.140342,99756.0,99754.0,0.13515171]
[1733641496860,0.0012531,99755.0,99754.0,0.13515171]
[1733641497583,0.0012531,99755.0,99754.0,0.33266037]
[1733641497841,0.0012531,99755.0,99754.0,0.13617415]
[1733641498056,0.0012531,99755.0,99754.0,0.13517415]
[1733641498515,0.0012531,99755.0,99754.0,0.13817415]
[1733641499505,0.0012531,99755.0,99754.0,0.003]
[1733641500031,0.0012531,99755.0,99754.0,0.13817415]
[1733641500157,0.0012531,99755.0,99754.0,0.33564029]
[1733641500570,0.0012531,99755.0,99754.0,0.47080606]
[1733641500774,0.0012531,99755.0,99754.0,0.47080722]
[1733641501018,0.0012531,99755.0,99754.0,0.13816777]
[1733641501445,0.0012531,99755.0,99754.0,0.003]
[1733641504134,0.0012531,99755.0,99754.0,0.09310755]
[1733641504564,0.0012531,99755.0,99754.0,0.09310893]
[1733641505003,0.0012531,99755.0,99754.0,0.003]
[1733641511512,0.0012531,99755.0,99754.0,0.002]
[1733641511922,0.0022531,99755.0,99754.0,0.002]
[1733641512719,0.0831531,99755.0,99754.0,0.002]
[1733641512944,0.28069,99754.0,99750.0,0.09184153]
[1733641513151,0.140348,99752.0,99750.0,0.0017326]
[1733641513418,0.00125318,99751.0,99750.0,0.0017326]
[1733641513738,0.00125318,99751.0,99750.0,0.01124741]
[1733641514756,0.00225318,99751.0,99750.0,0.01124741]
[1733641514995,0.00325318,99751.0,99750.0,0.01124741]
[1733641517847,0.00325318,99751.0,99750.0,0.0017326]
[1733641521352,0.02301946,99751.0,99750.0,0.0017326]
[1733641522910,0.02301946,99751.0,99743.0,0.09008194]
[1733641523116,0.14035,99750.0,99744.0,0.00952067]
[1733641523313,0.140357,99745.0,99744.0,0.00952067]
[1733641524087,0.140363,99741.0,99740.0,0.0017328]
[1733641524299,0.140363,99741.0,99740.0,0.1368722]
[1733641525359,0.140363,99741.0,99740.0,0.13704479]
[1733641525577,0.140363,99741.0,99740.0,0.00490539]
[1733641527269,0.140363,99741.0,99740.0,0.00590539]
[1733641527503,0.140363,99741.0,99740.0,0.00290539]
[1733641527709,0.140363,99741.0,99740.0,0.00390539]
[1733641528119,0.140363,99741.0,99740.0,0.00490539]
[1733641528352,0.15031085,99741.0,99740.0,0.00490539]
[1733641531290,0.23261085,99741.0,99740.0,0.00490539]
[1733641531506,0.23261085,99741.0,99740.0,0.00290539]
[1733641532612,0.23261085,99741.0,99740.0,0.00190539]
[1733641539471,0.15031085,99741.0,99740.0,0.00190539]
[1733641539654,0.15156426,99741.0,99740.0,0.00190539]
[1733641541998,0.140363,99741.0,99740.0,0.00190539]
[1733641542814,0.140363,99741.0,99740.0,0.07990539]
[1733641543251,0.140363,99741.0,99740.0,0.09160038]
[1733641547543,0.140357,99745.0,99740.0,0.09160038]
[1733641547803,0.140363,99742.0,99740.0,0.09160038]
[1733641549916,0.140363,99742.0,99740.0,0.07990539]
[1733641550126,0.140363,99742.0,99741.0,0.01169158]
[1733641550946,0.140357,99745.0,99741.0,0.01169158]
[1733641552305,0.00125322,99748.0,99741.0,0.01169158]
[1733641552516,0.140355,99747.0,99741.0,0.01169158]
[1733641553507,0.140359,99744.0,99741.0,0.01169158]
[1733641557295,0.141359,99744.0,99741.0,0.01169158]
[1733641557513,0.001,99744.0,99741.0,0.01169158]
[1733641558585,0.001,99744.0,99741.0,0.10175339]
[1733641560074,0.001,99744.0,99742.0,0.09006181]
[1733641560327,0.001,99744.0,99743.0,0.10002951]
[1733641560551,0.001,99744.0,99743.0,0.56223287]
[1733641560755,0.001,99744.0,99743.0,0.57316074]
[1733641561413,0.001,99744.0,99743.0,0.57305609]
[1733641561654,0.0017328,99750.0,99747.0,0.140353]
[1733641561858,0.0017328,99750.0,99749.0,0.18003287]
[1733641562096,0.0017328,99750.0,99749.0,0.33233675]
[1733641562350,0.0017328,99750.0,99749.0,0.01168355]
[1733641562564,0.002986,99750.0,99749.0,0.01168355]
[1733641562803,0.140352,99749.0,99743.0,0.002]
[1733641563002,0.140361,99743.0,99740.0,0.00190539]
[1733641563420,0.280722,99743.0,99740.0,0.00190539]
[1733641563750,0.140361,99743.0,99741.0,0.01169056]
[1733641565781,0.140361,99743.0,99741.0,0.01369056]
[1733641566186,0.140361,99743.0,99741.0,0.01469056]
[1733641570370,0.140361,99743.0,99741.0,0.10473529]
[1733641572949,0.140361,99743.0,99741.0,0.10470629]
[1733641573383,0.140353,99748.0,99741.0,0.10470629]
[1733641573590,0.140353,99748.0,99745.0,0.09000325]
[1733641573838,0.0017328,99750.0,99745.0,0.23503439]
[1733641574065,0.0017328,99750.0,99749.0,0.0899951]
[1733641574306,0.0017328,99750.0,99747.0,0.18236682]
[1733641574532,0.0017328,99750.0,99749.0,0.10166847]
[1733641574742,0.0017328,99750.0,99749.0,0.08998492]
[1733641574973,0.0017328,99750.0,99749.0,0.10166847]
[1733641575605,0.0027328,99750.0,99749.0,0.10166847]
[1733641575810,0.0027328,99750.0,99749.0,0.01168355]
[1733641576019,0.0017328,99750.0,99749.0,0.01168355]
[1733641576240,0.0017328,99750.0,99748.0,0.13497194]
[1733641576450,0.0027328,99750.0,99749.0,0.0116783]
[1733641576654,0.0027328,99750.0,99747.0,0.18233388]
[1733641576874,0.0027328,99750.0,99749.0,0.0116783]
[1733641577099,0.0027328,99750.0,99748.0,0.01167917]
[1733641577304,0.0027328,99750.0,99749.0,0.34381463]
[1733641577533,0.0027328,99750.0,99749.0,0.47876604]
[1733641577758,0.0017328,99750.0,99749.0,0.34381463]
[1733641577979,0.0027328,99750.0,99749.0,0.34381463]
[1733641578328,0.0017328,99750.0,99749.0,0.34381463]
[1733641578531,0.0027328,99750.0,99749.0,0.34381463]
[1733641578956,0.0027328,99750.0,99749.0,0.42171463]
[1733641580431,0.0027328,99750.0,99749.0,0.52174414]
[1733641582280,0.0017328,99750.0,99749.0,0.52174414]
[1733641582488,0.0017328,99750.0,99749.0,0.52274414]
[1733641582895,0.0017328,99750.0,99749.0,0.52174414]
[1733641583107,0.0017328,99750.0,99749.0,0.52574414]
[1733641583315,0.0017328,99750.0,99749.0,0.70563505]
[1733641583738,0.0017328,99750.0,99749.0,0.52574414]
[1733641583944,0.0017328,99750.0,99749.0,0.70563348]
[1733641584559,0.0017328,99750.0,99749.0,0.70763348]
[1733641586749,0.0017328,99750.0,99749.0,0.62973348]
[1733641588795,0.0017328,99750.0,99749.0,0.44984414]
[1733641589216,0.0017328,99750.0,99749.0,0.29763037]
[1733641589460,0.0017328,99750.0,99749.0,0.11770781]
[1733641589678,0.0017328,99750.0,99749.0,0.52730587]
[1733641589891,0.0017328,99750.0,99749.0,0.52654414]
[1733641590552,0.0017328,99750.0,99749.0,0.75140132]
[1733641590979,0.0017328,99750.0,99749.0,0.52654414]
[1733641591195,0.0017328,99750.0,99749.0,0.75140132]
[1733641591644,0.0017328,99750.0,99749.0,0.52654414]
[1733641592876,0.0017328,99750.0,99749.0,0.75140132]
[1733641593294,0.0017328,99750.0,99749.0,0.52654414]
[1733641594918,0.0017328,99750.0,99749.0,0.52624664]
[1733641596222,0.0017328,99750.0,99749.0,0.19440781]
[1733641596475,0.0017328,99750.0,99749.0,0.52700563]
[1733641596658,0.0017328,99750.0,99749.0,0.52624394]
[1733641599852,0.0017328,99750.0,99749.0,0.52617659]
[1733641602249,0.0017328,99750.0,99749.0,0.44947659]
[1733641604510,0.0017328,99750.0,99749.0,0.11770781]
[1733641604775,0.0017328,99750.0,99749.0,0.11846955]
[1733641605015,0.0017328,99750.0,99749.0,0.29824428]
[1733641605226,0.0017328,99750.0,99749.0,0.62928229]
[1733641605672,0.0017328,99750.0,99749.0,0.44950756]
[1733641609043,0.0017328,99750.0,99749.0,0.6742185]
[1733641609487,0.0017328,99750.0,99749.0,0.44950756]
[1733641610139,0.0017328,99750.0,99749.0,0.67425547]
[1733641610353,0.0017328,99750.0,99749.0,0.44950756]
[1733641614484,0.0017328,99750.0,99749.0,0.44973224]
[1733641618367,0.0017328,99750.0,99749.0,0.71956797]
[1733641619229,0.0017328,99750.0,99749.0,0.44997992]
[1733641627385,0.0017328,99750.0,99749.0,0.45031017]
[1733641628872,0.0017328,99750.0,99749.0,0.47331017]
[1733641642151,0.0017328,99750.0,99749.0,0.473351]
[1733641643176,0.0017328,99750.0,99749.0,0.56106209]
[1733641643461,0.0017332,99770.0,99759.0,0.140338]
[1733641643666,0.0017332,99770.0,99759.0,0.66148326]
[1733641643893,0.0017332,99770.0,99759.0,0.66072179]
[1733641644110,0.0017332,99770.0,99759.0,0.67238759]
[1733641644768,0.0017332,99770.0,99759.0,0.67338759]
[1733641644990,0.0017332,99770.0,99759.0,0.59318759]
[1733641645954,0.0017332,99770.0,99759.0,0.5856765]
[1733641646158,0.0017332,99770.0,99759.0,0.5931817]
[1733641646843,0.0017332,99770.0,99759.0,0.59296755]
[1733641647689,0.0017332,99770.0,99759.0,0.61596755]
[1733641647892,0.0017332,99770.0,99759.0,0.69156755]
[1733641648919,0.0017332,99770.0,99759.0,0.69056755]
[1733641649294,0.0017332,99770.0,99759.0,1.09312069]
[1733641649903,0.0017332,99770.0,99759.0,1.09512069]
[1733641650184,0.0017332,99770.0,99759.0,0.69656755]
[1733641651839,0.0017332,99770.0,99759.0,0.70649427]
[1733641653317,0.0017332,99770.0,99759.0,0.85649427]
[1733641655746,0.0017332,99770.0,99764.0,0.05]
[1733641655963,0.0017332,99770.0,99769.0,0.43302566]
[1733641656174,0.0017332,99770.0,99769.0,0.68468775]
[1733641656435,0.0017332,99770.0,99769.0,0.69633948]
[1733641656860,0.0017332,99770.0,99769.0,0.6956861]
[1733641657237,0.0017332,99770.0,99769.0,0.96527492]
[1733641658029,0.0017332,99770.0,99769.0,0.7046861]
[1733641658030,0.0027332,99770.0,99769.0,0.7046861]
[1733641658233,0.0027332,99770.0,99769.0,0.97422776]
[1733641658461,0.0017326,99790.0,99769.0,0.97422776]
[1733641658462,0.0017326,99790.0,99779.0,0.14031]
[1733641658638,0.0017326,99790.0,99779.0,0.60338129]
[1733641658837,0.0017326,99790.0,99779.0,0.88375893]
[1733641659236,0.0017326,99790.0,99779.0,0.69566028]
[1733641659640,0.00179073,99780.0,99779.0,0.69766028]
[1733641661294,0.00179073,99780.0,99779.0,0.70266028]
[1733641661682,0.00179073,99780.0,99779.0,0.70217275]
[1733641663226,0.00179073,99780.0,99779.0,0.71201936]
[1733641663441,0.00179073,99780.0,99779.0,0.71198999]
[1733641663783,0.00179073,99780.0,99779.0,0.70451416]
[1733641664788,0.04063735,99799.0,99779.0,0.70451416]
[1733641664996,0.04069489,99799.0,99798.0,0.140283]
[1733641665434,0.04069489,99799.0,99798.0,0.1519009]
[1733641666100,0.04269489,99799.0,99798.0,0.1519009]
[1733641666519,0.04232917,99799.0,99798.0,0.1519009]
[1733641667339,0.04332917,99799.0,99798.0,0.1519009]
[1733641667802,0.04532917,99799.0,99798.0,0.1519009]
[1733641669092,0.04532917,99799.0,99798.0,0.25269119]
[1733641669300,0.04532917,99799.0,99798.0,0.25193041]
[1733641670303,0.04032917,99799.0,99798.0,0.25193041]
[1733641670525,0.04032917,99799.0,99798.0,0.36453851]
[1733641670939,0.04232917,99799.0,99798.0,0.52493041]
[1733641671141,0.04232917,99799.0,99798.0,0.93706936]
[1733641671527,0.04232917,99799.0,99798.0,0.60633041]
[1733641671737,0.04032917,99799.0,99798.0,0.93687044]
[1733641671937,0.04032917,99799.0,99798.0,0.94671089]
[1733641672186,0.04032917,99799.0,99798.0,1.17549227]
[1733641673269,0.04032917,99799.0,99798.0,0.95171089]
[1733641673409,0.0017326,99810.0,99809.0,0.313267]
[1733641673621,0.0017326,99810.0,99809.0,0.41329651]
[1733641674027,0.0017326,99810.0,99809.0,0.42489506]
[1733641674697,0.0017326,99810.0,99809.0,0.42689506]
[1733641675134,0.0017326,99810.0,99809.0,0.42989506]
[1733641683614,0.0017326,99810.0,99809.0,0.43988747]
[1733641688476,0.0757,99824.0,99819.0,0.140253]
[1733641688626,0.0757,99824.0,99819.0,0.24028251]
[1733641688856,0.0757,99824.0,99819.0,0.25186853]
[1733641689039,0.0757,99824.0,99819.0,0.11161553]
[1733641690156,0.0018668,99820.0,99819.0,0.11161553]
[1733641690374,0.0018668,99820.0,99819.0,0.01158602]
[1733641690580,0.13141904,99820.0,99819.0,0.01158602]
[1733641690800,0.140267,99809.0,99806.0,0.08941187]
[1733641691004,0.0832,99808.0,99803.0,0.08941187]
[1733641691209,0.0832,99808.0,99807.0,0.01159554]
[1733641691412,0.0832,99808.0,99804.0,0.10002951]
[1733641691872,0.0832,99808.0,99805.0,0.0115984]
[1733641692089,0.0832,99808.0,99805.0,0.11162791]
[1733641698515,0.14027,99807.0,99805.0,0.11162791]
[1733641700850,0.14127,99807.0,99805.0,0.11162791]
[1733641702271,0.001,99807.0,99805.0,0.11162791]
[1733641706226,0.0482,99807.0,99805.0,0.11162791]
[1733641707292,0.0482,99807.0,99805.0,0.20137974]
[1733641707490,0.188472,99807.0,99805.0,0.20137974]
[1733641709128,0.188472,99807.0,99805.0,0.20151646]
[1733641710174,0.188472,99807.0,99805.0,0.10148695]
[1733641710372,0.00125241,99806.0,99805.0,0.0115984]
[1733641710851,0.140273,99805.0,99803.0,0.08988855]
[1733641711052,0.280546,99805.0,99802.0,0.08988855]
[1733641711527,0.218379,99801.0,99799.0,0.08988855]
[1733641711735,0.358658,99801.0,99798.0,0.08994609]
[1733641711948,0.358658,99801.0,99798.0,5.754e-05]
[1733641713400,0.358658,99801.0,99800.0,0.0008663]
[1733641714142,0.358658,99801.0,99800.0,0.01247218]
[1733641714606,0.358658,99801.0,99800.0,0.01447218]
[1733641715191,0.358658,99801.0,99800.0,0.0028663]
[1733641715393,0.358658,99801.0,99800.0,0.01547218]
[1733641715612,0.358658,99801.0,99800.0,0.0038663]
[1733641720750,0.280558,99801.0,99800.0,0.0038663]
[1733641721512,0.280558,99801.0,99800.0,0.01547619]
[1733641721688,0.280558,99801.0,99800.0,0.0038663]
[1733641721991,0.280558,99801.0,99800.0,0.01547619]
[1733641725900,0.280558,99801.0,99800.0,0.01447619]
[1733641726486,0.280558,99801.0,99800.0,0.01247619]
[1733641726892,0.280558,99801.0,99800.0,0.01347619]
[1733641727064,0.280558,99801.0,99800.0,0.01247619]
[1733641736198,0.281558,99801.0,99800.0,0.01247619]
[1733641736635,0.283558,99801.0,99800.0,0.01247619]
[1733641737074,0.283558,99801.0,99800.0,0.10238772]
[1733641737728,0.283558,99801.0,99800.0,0.01247619]
[1733641737961,0.283558,99801.0,99800.0,0.10244042]
[1733641738200,0.283558,99801.0,99800.0,0.01247619]
[1733641739328,0.283558,99801.0,99800.0,0.10244042]
[1733641740220,0.283558,99801.0,99800.0,0.01247619]
[1733641740430,0.283558,99801.0,99800.0,0.10244042]
[1733641740632,0.283558,99801.0,99800.0,0.01247619]
[1733641745655,0.283558,99801.0,99800.0,0.14746262]
[1733641746268,0.283558,99801.0,99800.0,0.47975192]
[1733641747335,0.283558,99801.0,99800.0,0.47978033]
[1733641747667,0.283558,99801.0,99800.0,0.3447939]
[1733641748058,0.283558,99801.0,99800.0,0.01247619]
[1733641748430,0.283558,99801.0,99800.0,0.3447939]
[1733641749149,0.283558,99801.0,99800.0,0.14753399]
[1733641749524,0.283558,99801.0,99800.0,0.01247619]
[1733641751150,0.283558,99801.0,99800.0,0.14753399]
[1733641751466,0.283558,99801.0,99800.0,0.01247619]
[1733641751815,0.283558,99801.0,99800.0,0.1475769]
[1733641751999,0.283558,99801.0,99800.0,0.01247619]
[1733641752218,0.283558,99801.0,99800.0,0.1475769]
[1733641752499,0.283558,99801.0,99800.0,0.48007267]
[1733641752702,0.283558,99801.0,99800.0,0.1475769]
[1733641753597,0.283558,99801.0,99800.0,0.48010677]
[1733641753857,0.409958,99801.0,99800.0,0.01247619]
[1733641754516,0.409958,99801.0,99800.0,0.0008663]
[1733641755593,0.41975455,99801.0,99800.0,0.0008663]
[1733641771122,0.37005455,99801.0,99800.0,0.0008663]
[1733641771331,0.29335455,99801.0,99800.0,0.0008663]
[1733641782368,0.283558,99801.0,99800.0,0.0008663]
[1733641798606,0.283558,99801.0,99800.0,0.01247628]
[1733641798807,0.283558,99801.0,99800.0,0.0008663]
[1733641799016,0.283558,99801.0,99800.0,0.01247628]
[1733641799215,0.283558,99801.0,99800.0,0.0008663]
[1733641799413,0.283558,99801.0,99800.0,0.01247628]
[1733641799686,0.283558,99801.0,99800.0,0.0008663]
[1733641799808,0.283558,99801.0,99800.0,0.01247628]
[1733641800010,0.283558,99801.0,99800.0,0.0008663]
[1733641800216,0.283558,99801.0,99800.0,0.01247628]
[1733641800416,0.283558,99801.0,99800.0,0.0008663]
[1733641800662,0.283558,99801.0,99800.0,0.01247628]
[1733641800862,0.283558,99801.0,99800.0,0.0008663]
[1733641801014,0.283558,99801.0,99800.0,0.01247628]
[1733641801221,0.283558,99801.0,99800.0,0.0008663]
[1733641801420,0.283558,99801.0,99800.0,0.01247628]
[1733641801627,0.283558,99801.0,99800.0,0.0008663]
[1733641801829,0.283558,99801.0,99800.0,0.01247628]
[1733641802029,0.283558,99801.0,99800.0,0.0008663]
[1733641802648,0.283558,99801.0,99800.0,0.01247628]
[1733641808878,0.143279,99801.0,99800.0,0.01247628]
[1733641809124,0.143279,99801.0,99800.0,0.10262555]
[1733641809367,0.003,99801.0,99800.0,0.55852574]
[1733641809632,0.003,99801.0,99800.0,0.34520184]
[1733641809861,0.00425251,99801.0,99800.0,0.34520184]
[1733641810090,0.07635251,99801.0,99800.0,0.01247628]
[1733641810539,0.07735251,99801.0,99800.0,0.01247628]
[1733641810807,0.08740454,99801.0,99800.0,0.01247628]
[1733641811019,0.08840454,99801.0,99800.0,0.01247628]
[1733641811256,0.08740454,99801.0,99800.0,0.0008663]
[1733641811730,0.08740454,99801.0,99800.0,0.01203084]
[1733641812612,0.08740454,99801.0,99800.0,0.0008663]
[1733641813026,0.08940454,99801.0,99800.0,0.0008663]
[1733641817033,0.18943405,99801.0,99800.0,0.0008663]
[1733641817504,0.22073068,99801.0,99800.0,3e-07]
[1733641817727,0.22073068,99801.0,99798.0,5.754e-05]
[1733641817728,0.2306,99799.0,99798.0,8.4e-07]
[1733641817953,0.36192614,99799.0,99798.0,8.4e-07]
[1733641818181,0.54229691,99799.0,99798.0,8.4e-07]
[1733641818424,0.36192614,99799.0,99798.0,8.4e-07]
[1733641819511,0.49705642,99799.0,99798.0,8.4e-07]
[1733641819715,0.49905642,99799.0,99798.0,8.4e-07]
[1733641820530,0.36392614,99799.0,99798.0,8.4e-07]
[1733641821139,0.36692614,99799.0,99798.0,8.4e-07]
[1733641821344,0.45696785,99799.0,99798.0,8.4e-07]
[1733641822611,0.36692614,99799.0,99798.0,8.4e-07]
[1733641824140,0.51674148,99799.0,99798.0,8.4e-07]
[1733641824574,0.41692614,99799.0,99798.0,8.4e-07]
[1733641824992,0.41192614,99799.0,99798.0,8.4e-07]
[1733641825210,0.41192614,99799.0,99790.0,0.0008659]
[1733641825211,0.218691,99792.0,99790.0,7.4e-07]
[1733641825443,0.4249825,99791.0,99790.0,7.4e-07]
[1733641825652,0.47372951,99791.0,99790.0,7.4e-07]
[1733641828101,0.47872951,99791.0,99790.0,7.4e-07]
[1733641828304,0.48172951,99791.0,99790.0,7.4e-07]
[1733641829628,0.48692193,99791.0,99790.0,7.4e-07]
[1733641830540,0.50655089,99791.0,99790.0,7.4e-07]
[1733641831164,0.51632372,99791.0,99790.0,7.4e-07]
[1733641832705,0.55644472,99791.0,99790.0,7.4e-07]
[1733641837872,0.55644472,99791.0,99790.0,0.00086724]
[1733641838329,0.55644472,99791.0,99790.0,2.4e-07]
[1733641844473,0.58769131,99791.0,99790.0,2.4e-07]
[1733641854843,0.36399131,99791.0,99790.0,2.4e-07]
[1733641859773,0.41399131,99791.0,99790.0,2.4e-07]
[1733641861487,0.50409933,99791.0,99790.0,2.4e-07]
[1733641862587,0.41399131,99791.0,99790.0,2.4e-07]
[1733641863211,0.36399131,99791.0,99790.0,2.4e-07]
[1733641863462,0.41399131,99791.0,99790.0,2.4e-07]
[1733641868462,0.59420736,99791.0,99790.0,2.4e-07]
[1733641870642,0.68958891,99791.0,99790.0,2.4e-07]
[1733641871073,0.50937286,99791.0,99790.0,2.4e-07]
[1733641879436,0.46925186,99791.0,99790.0,2.4e-07]
[1733641880601,0.38955186,99791.0,99790.0,2.4e-07]
[1733641882477,0.33955186,99791.0,99790.0,2.4e-07]
[1733641885273,0.51989107,99791.0,99790.0,2.4e-07]
[1733641887528,0.33955186,99791.0,99790.0,2.4e-07]
[1733641889238,0.32387031,99791.0,99790.0,2.4e-07]
[1733641895670,0.50424541,99791.0,99790.0,2.4e-07]
[1733641895889,0.32387031,99791.0,99790.0,2.4e-07]
[1733641904477,0.50425395,99791.0,99790.0,2.4e-07]
[1733641905663,0.50428249,99791.0,99790.0,2.4e-07]
[1733641909109,0.50426132,99791.0,99790.0,2.4e-07]
[1733641909531,0.32387031,99791.0,99790.0,2.4e-07]
[1733641909732,0.50425571,99791.0,99790.0,2.4e-07]
[1733641910163,0.49906329,99791.0,99790.0,2.4e-07]
[1733641914318,0.36867789,99791.0,99790.0,2.4e-07]
[1733641914564,0.45187789,99791.0,99790.0,2.4e-07]
[1733641914791,0.8426644,99791.0,99790.0,2.4e-07]
[1733641915007,0.140319,99772.0,99771.0,0.00031463]
[1733641915214,0.27284817,99772.0,99771.0,0.00031463]
[1733641915429,0.2715951,99772.0,99771.0,0.00031463]
[1733641917222,0.2785951,99772.0,99771.0,0.00031463]
[1733641917397,0.4285951,99772.0,99771.0,6.3e-07]
[1733641917616,0.44886393,99772.0,99771.0,6.3e-07]
[1733641917823,0.45186393,99772.0,99771.0,6.3e-07]
[1733641919546,0.45127293,99772.0,99771.0,6.3e-07]
[1733641919964,0.42002634,99772.0,99771.0,6.3e-07]
[1733641920819,0.43007627,99772.0,99771.0,6.3e-07]
[1733641924514,0.33004676,99772.0,99771.0,0.04990063]
[1733641924743,0.31999683,99772.0,99771.0,0.13210063]
[1733641925170,0.31999683,99772.0,99771.0,0.14451341]
[1733641926060,0.16999683,99772.0,99771.0,0.14451341]
[1733641927107,0.16699683,99772.0,99771.0,0.01241341]
[1733641927341,0.16699683,99772.0,99771.0,6.3e-07]
[1733641927558,0.16299683,99772.0,99771.0,6.3e-07]
[1733641928051,0.16499683,99772.0,99771.0,6.3e-07]
[1733641928258,0.16699683,99772.0,99771.0,6.3e-07]
[1733641935919,0.41702634,99772.0,99771.0,6.3e-07]
[1733641936998,0.44828126,99772.0,99771.0,6.3e-07]
[1733641937414,0.41702634,99772.0,99771.0,6.3e-07]
[1733641938038,0.15,99771.0,99770.0,3e-08]
[1733641938244,0.28253634,99771.0,99770.0,3e-08]
[1733641938450,0.28128314,99771.0,99770.0,3e-08]
[1733641939896,0.28328314,99771.0,99770.0,3e-08]
[1733641940660,0.28828314,99771.0,99770.0,3e-08]
[1733641941075,0.28628314,99771.0,99770.0,3e-08]
[1733641941499,0.28628314,99771.0,99750.0,0.0008663]
[1733641941500,0.70161,99770.0,99750.0,0.0008663]
[1733641941766,0.140349,99751.0,99750.0,0.0008663]
[1733641942207,0.1416022,99751.0,99750.0,0.0008663]
[1733641943063,0.1416022,99751.0,99750.0,0.00092383]
[1733641943588,0.1416022,99751.0,99750.0,0.00192383]
[1733641943796,0.1416022,99751.0,99750.0,0.00292383]
[1733641944977,0.1416022,99751.0,99750.0,0.00192383]
[1733641945836,0.1416022,99751.0,99750.0,0.00092383]
[1733641946062,0.1416022,99751.0,99750.0,0.00292383]
[1733641949641,0.16142366,99751.0,99750.0,0.00292383]
[1733641950264,0.17157683,99751.0,99750.0,0.00292383]
[1733641952693,0.16142366,99751.0,99750.0,0.00292383]
[1733641971746,0.16017046,99751.0,99750.0,0.00292383]
[1733641972124,0.16017046,99751.0,99750.0,0.04882383]
[1733641972547,0.16017046,99751.0,99750.0,0.06126059]
[1733641983178,0.16017046,99751.0,99750.0,0.15139812]
[1733641983614,0.16017046,99751.0,99750.0,0.06126059]
[1733641983975,0.16017046,99751.0,99750.0,0.01536059]
[1733642000100,0.16017046,99751.0,99742.0,0.0768]
[1733642000101,0.280712,99746.0,99744.0,0.09017502]
[1733642000507,0.280712,99746.0,99743.0,0.00017259]
[1733642001292,0.280712,99746.0,99744.0,0.002]
[1733642001485,0.281712,99746.0,99744.0,0.003]
[1733642001733,0.281712,99746.0,99744.0,0.001]
[1733642001952,0.280712,99746.0,99743.0,0.00017259]
[1733642002146,0.280712,99746.0,99743.0,0.00217259]
[1733642002352,0.281712,99746.0,99743.0,0.00317259]
[1733642002549,0.280712,99746.0,99743.0,0.00217259]
[1733642002991,0.281712,99746.0,99744.0,0.001]
[1733642003433,0.280712,99746.0,99743.0,0.00217259]
[1733642003581,0.280712,99746.0,99743.0,0.00017259]
[1733642004593,0.281712,99746.0,99743.0,0.00117259]
[1733642009020,0.281712,99746.0,99743.0,0.13648683]
[1733642010033,0.281712,99746.0,99745.0,0.13531424]
[1733642010238,0.281712,99746.0,99745.0,0.46831633]
[1733642011146,0.281712,99746.0,99745.0,0.46931633]
[1733642011375,0.280712,99746.0,99745.0,0.46931633]
[1733642011805,0.281712,99746.0,99745.0,0.47031633]
[1733642012452,0.001,99746.0,99745.0,0.41080209]
[1733642012667,0.001,99746.0,99745.0,0.63631953]
[1733642012877,0.001,99746.0,99745.0,0.5912153]
[1733642013084,0.001,99746.0,99745.0,0.41080209]
[1733642015763,0.001,99746.0,99745.0,0.33500209]
[1733642017350,0.001,99746.0,99745.0,0.33499513]
[1733642022060,0.001,99746.0,99745.0,0.33500377]
[1733642024370,0.001,99746.0,99745.0,0.56013328]
[1733642024595,0.001,99746.0,99745.0,0.70049028]
[1733642025023,0.0017328,99750.0,99749.0,0.163352]
[1733642025217,0.0017328,99750.0,99749.0,0.72224688]
[1733642025468,0.0017328,99750.0,99749.0,0.72148528]
[1733642026349,0.0017328,99750.0,99749.0,0.72248528]
[1733642026350,0.0027328,99750.0,99749.0,0.72248528]
[1733642026958,0.0027328,99750.0,99749.0,0.72348528]
[1733642027158,0.0027328,99750.0,99749.0,1.12292199]
[1733642027382,0.0027328,99750.0,99749.0,0.72348528]
[1733642027626,0.0017328,99750.0,99749.0,0.72248528]
[1733642027840,0.0017328,99750.0,99749.0,0.72548528]
[1733642028306,0.0017328,99750.0,99749.0,0.72248528]
[1733642028507,0.0027328,99750.0,99749.0,0.72948528]
[1733642028749,0.0027328,99750.0,99749.0,0.73048528]
[1733642029156,0.0027328,99750.0,99749.0,0.72948528]
[1733642029499,0.0027328,99750.0,99749.0,0.73348528]
[1733642029729,0.0027328,99750.0,99749.0,0.59313328]
[1733642030152,0.0027328,99750.0,99749.0,0.57013328]
[1733642032860,0.0027328,99750.0,99749.0,0.79509062]
[1733642033687,0.0027328,99750.0,99749.0,0.57013328]
[1733642039190,0.0027328,99750.0,99749.0,0.60294217]
[1733642040242,0.0017332,99770.0,99765.0,0.0808]
[1733642040455,0.0017332,99770.0,99766.0,0.09070113]
[1733642041317,0.0017332,99770.0,99766.0,0.08993969]
[1733642041519,0.0017332,99770.0,99766.0,0.09093969]
[1733642041726,0.0017332,99770.0,99766.0,0.001]
[1733642043860,0.140324,99769.0,99766.0,0.001]
[1733642044078,0.0017332,99770.0,99766.0,0.001]
[1733642044665,0.140324,99769.0,99766.0,0.001]
[1733642045003,0.140324,99769.0,99764.0,0.08991014]
[1733642045196,0.140324,99769.0,99766.0,0.002]
[1733642045410,0.140324,99769.0,99766.0,0.001]
[1733642046052,0.140324,99769.0,99763.0,0.08991014]
[1733642046282,0.140324,99769.0,99766.0,0.001]
[1733642047500,0.140324,99769.0,99764.0,0.00176153]
[1733642047732,0.140324,99769.0,99764.0,0.00076153]
[1733642049928,0.0017332,99770.0,99764.0,0.00076153]
[1733642051270,0.140324,99769.0,99764.0,0.00076153]
[1733642053599,0.140324,99769.0,99763.0,0.18992034]
[1733642054686,0.140324,99769.0,99764.0,0.08989083]
[1733642054867,0.140324,99769.0,99763.0,0.18992034]
[1733642055764,0.140324,99769.0,99764.0,0.08989083]
[1733642057534,0.140324,99769.0,99763.0,0.10002951]
[1733642059558,0.140324,99769.0,99763.0,0.18992034]
[1733642060559,0.140324,99769.0,99764.0,0.01192389]
[1733642061721,0.140324,99769.0,99764.0,0.10181472]
[1733642062554,0.140324,99769.0,99765.0,0.08989083]
[1733642062717,0.140324,99769.0,99765.0,0.01192372]
[1733642062925,0.140324,99769.0,99765.0,0.10181455]
[1733642063501,0.140324,99769.0,99766.0,0.08989083]
[1733642063904,0.140324,99769.0,99767.0,0.01192194]
[1733642064357,0.140324,99769.0,99766.0,0.0899873]
[1733642064566,0.140324,99769.0,99768.0,0.01192105]
[1733642064870,0.140324,99769.0,99767.0,0.10190924]
[1733642065079,0.140324,99769.0,99768.0,0.01192105]
[1733642065520,0.140324,99769.0,99768.0,0.10190835]